Workbook

Sheet Title
M7: 2160
A25: Image credit: PublicDomainPictures / Pixabay

Sheet Sheet5
A1: Cost Center | B1: Total
A2: 1001 | B2: 35294.48
A3: 1002 | B3: 57067.77
A4: 1003 | B4: 27742.23
A5: 1004 | B5: 73788.04
A6: 1005 | B6: 46298.02
A7: 1006 | B7: 46853.65
A8: 1007 | B8: 69346.22
A9: 1008 | B9: 49418.23
A10: 1009 | B10: 18768.9
A11: 1010 | B11: 56621.07
A12: 1011 | B12: 43407.45
A13: 1012 | B13: 49765.24
A14: 1013 | B14: 21102.72
A15: 1014 | B15: 49126.39
A16: 1015 | B16: 20683.55
A17: 1016 | B17: 28718.65
A18: 1017 | B18: 34115.52
A19: 1018 | B19: 37764.92
A20: 1019 | B20: 56331.22
A21: 1020 | B21: 55926.49
A22: 1021 | B22: 41166.05
A23: 1022 | B23: 21047.24
A24: 1023 | B24: 29955.58
A25: 1024 | B25: 47186.26
A26: 1025 | B26: 34131.21
A27: 1026 | B27: 36788.62
A28: 1027 | B28: 19907.81
A29: 1028 | B29: 59104.85
A30: 1029 | B30: 33623.48
A31: 1030 | B31: 34700.53

Sheet Data
A1: Cost Center | B1: Total | C1: Details
A2: 1001 | B2: =_xlfn.IFNA(VLOOKUP(A2,MyData_1[],2,FALSE),"") -> 35294.48 | C2: Elderberry - $4,112.84 Elderberry - $2,389.96 Raspberry - $1,155.96 Tangerine - $4,725.14 Jackfruit - $6,706.99 Apple - $1,609.90 - Plus a note here Something - $1000 - Just added Zucchini - $6,909.86 Orange - $6,683.83 - Don't double dip
B3: =_xlfn.IFNA(VLOOKUP(A3,MyData_1[],2,FALSE),"") -> 
A4: 1002 | B4: =_xlfn.IFNA(VLOOKUP(A4,MyData_1[],2,FALSE),"") -> 57067.77 | C4: Star fruit - $3,536.84 Fig - $9,720.60 Quince - $9,022.60 Date - $3,308.67 Plum - $9,638.22 Jackfruit - $1,280.15 - Plus a note here Honeydew - $7,909.68 Vanilla - $1,623.00 - Don't double dip Elderberry - $7,697.31 Watermelon - $3,330.70
B5: =_xlfn.IFNA(VLOOKUP(A5,MyData_1[],2,FALSE),"") -> 
A6: 1003 | B6: =_xlfn.IFNA(VLOOKUP(A6,MyData_1[],2,FALSE),"") -> 27742.23 | C6: Mango - $627.37 Mango - $7,264.25 Cherry - $6,066.01 Jackfruit - $4,010.66 Star fruit - $9,773.94
B7: =_xlfn.IFNA(VLOOKUP(A7,MyData_1[],2,FALSE),"") -> 
A8: 1004 | B8: =_xlfn.IFNA(VLOOKUP(A8,MyData_1[],2,FALSE),"") -> 73788.04 | C8: Quince - $7,406.04 Quince - $8,409.02 Date - $7,815.32 Apple - $9,030.06 Quince - $7,527.13 Quince - $4,364.88 - Plus a note here Tangerine - $8,207.25 Banana - $4,449.09 - Don't double dip Cherry - $9,169.65 Zucchini - $7,409.60
B9: =_xlfn.IFNA(VLOOKUP(A9,MyData_1[],2,FALSE),"") -> 
A10: 1005 | B10: =_xlfn.IFNA(VLOOKUP(A10,MyData_1[],2,FALSE),"") -> 46298.02 | C10: Banana - $8,243.90 Orange - $3,014.10 Quince - $7,209.86 Cherry - $2,130.98 Tangerine - $8,863.28 Yuzu - $5,912.82 - Plus a note here Date - $7,088.12 Plum - $3,834.96 - Don't double dip
B11: =_xlfn.IFNA(VLOOKUP(A11,MyData_1[],2,FALSE),"") -> 
A12: 1006 | B12: =_xlfn.IFNA(VLOOKUP(A12,MyData_1[],2,FALSE),"") -> 46853.65 | C12: Cherry - $3,228.38 Yuzu - $1,964.42 Ugli fruit - $8,421.35 Honeydew - $4,537.74 Banana - $5,963.49 Xigua - $4,561.36 - Plus a note here Tangerine - $4,370.96 Orange - $9,629.53 - Don't double dip Quince - $4,176.42
B13: =_xlfn.IFNA(VLOOKUP(A13,MyData_1[],2,FALSE),"") -> 
A14: 1007 | B14: =_xlfn.IFNA(VLOOKUP(A14,MyData_1[],2,FALSE),"") -> 69346.22 | C14: Lime - $4,133.46 Guava - $8,585.52 Apple - $7,601.55 Tangerine - $7,294.91 Star fruit - $9,677.48 Tangerine - $4,612.74 - Plus a note here Orange - $9,596.76 Lime - $8,535.12 - Don't double dip Elderberry - $3,549.50 Orange - $5,759.18
B15: =_xlfn.IFNA(VLOOKUP(A15,MyData_1[],2,FALSE),"") -> 
A16: 1008 | B16: =_xlfn.IFNA(VLOOKUP(A16,MyData_1[],2,FALSE),"") -> 49418.23 | C16: Honeydew - $3,439.72 Orange - $2,214.69 Cherry - $8,864.25 Zucchini - $3,002.03 Kiwi - $7,573.72 Cherry - $8,530.50 - Plus a note here Jackfruit - $261.66 Banana - $3,935.73 - Don't double dip Tangerine - $8,597.18 Yuzu - $2,998.75
B17: =_xlfn.IFNA(VLOOKUP(A17,MyData_1[],2,FALSE),"") -> 
A18: 1009 | B18: =_xlfn.IFNA(VLOOKUP(A18,MyData_1[],2,FALSE),"") -> 18768.9 | C18: Guava - $1,221.39 Iceberg - $2,791.13 Zucchini - $5,358.31 Nectarine - $5,697.09 Elderberry - $3,700.98
B19: =_xlfn.IFNA(VLOOKUP(A19,MyData_1[],2,FALSE),"") -> 
A20: 1010 | B20: =_xlfn.IFNA(VLOOKUP(A20,MyData_1[],2,FALSE),"") -> 56621.07 | C20: Quince - $9,421.13 Jackfruit - $3,661.11 Watermelon - $4,482.45 Vanilla - $9,807.77 Xigua - $5,173.26 Tangerine - $6,278.12 - Plus a note here Star fruit - $7,325.56 Orange - $9,976.75 - Don't double dip Star fruit - $494.92
B21: =_xlfn.IFNA(VLOOKUP(A21,MyData_1[],2,FALSE),"") -> 
A22: 1011 | B22: =_xlfn.IFNA(VLOOKUP(A22,MyData_1[],2,FALSE),"") -> 43407.45 | C22: Star fruit - $1,102.61 Date - $2,885.45 Mango - $638.30 Iceberg - $8,172.81 Raspberry - $5,390.42 Fig - $3,439.22 - Plus a note here Tangerine - $5,207.99 Lime - $8,381.62 - Don't double dip Star fruit - $8,189.03
B23: =_xlfn.IFNA(VLOOKUP(A23,MyData_1[],2,FALSE),"") -> 
A24: 1012 | B24: =_xlfn.IFNA(VLOOKUP(A24,MyData_1[],2,FALSE),"") -> 49765.24 | C24: Raspberry - $5,772.45 Mango - $9,452.73 Nectarine - $2,737.82 Tangerine - $5,869.70 Banana - $5,515.64 Date - $4,073.39 - Plus a note here Watermelon - $4,468.89 Yuzu - $9,863.41 - Don't double dip Watermelon - $2,011.21
B25: =_xlfn.IFNA(VLOOKUP(A25,MyData_1[],2,FALSE),"") -> 
A26: 1013 | B26: =_xlfn.IFNA(VLOOKUP(A26,MyData_1[],2,FALSE),"") -> 21102.72 | C26: Fig - $1,609.31 Jackfruit - $5,934.18 Raspberry - $1,123.95 Zucchini - $2,420.19 Lime - $1,566.18 Lime - $7,965.62 - Plus a note here Jackfruit - $483.29
B27: =_xlfn.IFNA(VLOOKUP(A27,MyData_1[],2,FALSE),"") -> 
A28: 1014 | B28: =_xlfn.IFNA(VLOOKUP(A28,MyData_1[],2,FALSE),"") -> 49126.39 | C28: Lime - $4,555.10 Date - $3,215.41 Star fruit - $2,951.09 Banana - $7,946.73 Yuzu - $8,484.92 Xigua - $1,748.70 - Plus a note here Iceberg - $7,585.30 Ugli fruit - $3,566.33 - Don't double dip Plum - $9,072.81
B29: =_xlfn.IFNA(VLOOKUP(A29,MyData_1[],2,FALSE),"") -> 
A30: 1015 | B30: =_xlfn.IFNA(VLOOKUP(A30,MyData_1[],2,FALSE),"") -> 20683.55 | C30: Raspberry - $4,838.07 Cherry - $3,385.94 Honeydew - $2,293.40 Raspberry - $6,288.43 Cherry - $3,877.71
B31: =_xlfn.IFNA(VLOOKUP(A31,MyData_1[],2,FALSE),"") -> 
A32: 1016 | B32: =_xlfn.IFNA(VLOOKUP(A32,MyData_1[],2,FALSE),"") -> 28718.65 | C32: Ugli fruit - $5,735.41 Watermelon - $5,599.16 Xigua - $2,687.81 Quince - $308.14 Banana - $6,237.31 Xigua - $3,196.27 - Plus a note here Plum - $450.39 Date - $4,504.16 - Don't double dip
B33: =_xlfn.IFNA(VLOOKUP(A33,MyData_1[],2,FALSE),"") -> 
A34: 1017 | B34: =_xlfn.IFNA(VLOOKUP(A34,MyData_1[],2,FALSE),"") -> 34115.52 | C34: Ugli fruit - $5,171.31 Xigua - $1,031.96 Mango - $9,168.43 Plum - $938.19 Apple - $8,107.31 Banana - $9,698.32 - Plus a note here
B35: =_xlfn.IFNA(VLOOKUP(A35,MyData_1[],2,FALSE),"") -> 
A36: 1018 | B36: =_xlfn.IFNA(VLOOKUP(A36,MyData_1[],2,FALSE),"") -> 37764.92 | C36: Iceberg - $5,862.55 Tangerine - $9,028.16 Date - $9,563.40 Apple - $4,321.75 Orange - $4,745.68 Guava - $4,243.38 - Plus a note here
B37: =_xlfn.IFNA(VLOOKUP(A37,MyData_1[],2,FALSE),"") -> 
A38: 1019 | B38: =_xlfn.IFNA(VLOOKUP(A38,MyData_1[],2,FALSE),"") -> 56331.22 | C38: Zucchini - $9,270.65 Quince - $4,103.20 Guava - $2,336.80 Nectarine - $1,873.61 Cherry - $8,369.36 Elderberry - $8,967.15 - Plus a note here Zucchini - $6,816.69 Elderberry - $1,019.24 - Don't double dip Yuzu - $5,064.52 Yuzu - $8,510.00
B39: =_xlfn.IFNA(VLOOKUP(A39,MyData_1[],2,FALSE),"") -> 
A40: 1020 | B40: =_xlfn.IFNA(VLOOKUP(A40,MyData_1[],2,FALSE),"") -> 55926.49 | C40: Jackfruit - $2,238.52 Elderberry - $6,844.03 Nectarine - $9,574.57 Nectarine - $7,070.74 Zucchini - $2,845.14 Elderberry - $3,451.09 - Plus a note here Xigua - $4,756.92 Tangerine - $8,630.20 - Don't double dip Banana - $2,532.50 Yuzu - $7,982.78
B41: =_xlfn.IFNA(VLOOKUP(A41,MyData_1[],2,FALSE),"") -> 
A42: 1021 | B42: =_xlfn.IFNA(VLOOKUP(A42,MyData_1[],2,FALSE),"") -> 41166.05 | C42: Quince - $3,755.14 Watermelon - $8,822.95 Apple - $3,514.55 Elderberry - $2,060.21 Guava - $3,592.43 Quince - $2,900.98 - Plus a note here Cherry - $3,107.30 Elderberry - $4,285.95 - Don't double dip Vanilla - $9,126.54
B43: =_xlfn.IFNA(VLOOKUP(A43,MyData_1[],2,FALSE),"") -> 
A44: 1022 | B44: =_xlfn.IFNA(VLOOKUP(A44,MyData_1[],2,FALSE),"") -> 21047.24 | C44: Date - $8,377.19 Jackfruit - $524.75 Iceberg - $816.27 Fig - $4,727.68 Tangerine - $6,601.35
B45: =_xlfn.IFNA(VLOOKUP(A45,MyData_1[],2,FALSE),"") -> 
A46: 1023 | B46: =_xlfn.IFNA(VLOOKUP(A46,MyData_1[],2,FALSE),"") -> 29955.58 | C46: Orange - $7,585.77 Jackfruit - $1,549.96 Mango - $7,171.50 Jackfruit - $7,251.94 Fig - $6,396.41
B47: =_xlfn.IFNA(VLOOKUP(A47,MyData_1[],2,FALSE),"") -> 
A48: 1024 | B48: =_xlfn.IFNA(VLOOKUP(A48,MyData_1[],2,FALSE),"") -> 47186.26 | C48: Quince - $7,661.57 Jackfruit - $6,723.86 Mango - $3,061.96 Orange - $3,281.52 Banana - $4,062.96 Star fruit - $9,077.73 - Plus a note here Vanilla - $9,738.02 Date - $1,357.22 - Don't double dip Mango - $2,221.42
B49: =_xlfn.IFNA(VLOOKUP(A49,MyData_1[],2,FALSE),"") -> 
A50: 1025 | B50: =_xlfn.IFNA(VLOOKUP(A50,MyData_1[],2,FALSE),"") -> 34131.21 | C50: Guava - $5,361.73 Jackfruit - $1,530.03 Jackfruit - $2,200.47 Tangerine - $8,756.85 Apple - $6,162.93 Mango - $5,237.57 - Plus a note here Fig - $3,916.32 Nectarine - $965.31 - Don't double dip
B51: =_xlfn.IFNA(VLOOKUP(A51,MyData_1[],2,FALSE),"") -> 
A52: 1026 | B52: =_xlfn.IFNA(VLOOKUP(A52,MyData_1[],2,FALSE),"") -> 36788.62 | C52: Watermelon - $2,864.56 Vanilla - $5,078.97 Orange - $9,620.89 Plum - $159.58 Guava - $368.01 Iceberg - $7,384.62 - Plus a note here Date - $471.99 Tangerine - $8,928.46 - Don't double dip Fig - $1,911.54
B53: =_xlfn.IFNA(VLOOKUP(A53,MyData_1[],2,FALSE),"") -> 
A54: 1027 | B54: =_xlfn.IFNA(VLOOKUP(A54,MyData_1[],2,FALSE),"") -> 19907.81 | C54: Vanilla - $4,812.40 Ugli fruit - $5,714.93 Vanilla - $5,008.34 Plum - $2,260.73 Yuzu - $2,111.41
B55: =_xlfn.IFNA(VLOOKUP(A55,MyData_1[],2,FALSE),"") -> 
A56: 1028 | B56: =_xlfn.IFNA(VLOOKUP(A56,MyData_1[],2,FALSE),"") -> 59104.85 | C56: Mango - $8,274.88 Orange - $6,219.35 Apple - $8,537.17 Kiwi - $3,600.98 Honeydew - $194.81 Star fruit - $5,439.41 - Plus a note here Star fruit - $6,393.70 Elderberry - $5,427.89 - Don't double dip Cherry - $7,356.09 Plum - $7,660.57
B57: =_xlfn.IFNA(VLOOKUP(A57,MyData_1[],2,FALSE),"") -> 
A58: 1029 | B58: =_xlfn.IFNA(VLOOKUP(A58,MyData_1[],2,FALSE),"") -> 33623.48 | C58: Jackfruit - $8,872.39 Xigua - $5,882.78 Jackfruit - $2,530.34 Guava - $4,497.39 Star fruit - $2,003.26 Nectarine - $9,837.32 - Plus a note here
B59: =_xlfn.IFNA(VLOOKUP(A59,MyData_1[],2,FALSE),"") -> 
A60: 1030 | B60: =_xlfn.IFNA(VLOOKUP(A60,MyData_1[],2,FALSE),"") -> 34700.53 | C60: Jackfruit - $6,264.21 Raspberry - $4,900.77 Honeydew - $3,391.54 Ugli fruit - $7,958.38 Date - $2,826.70 Plum - $3,643.90 - Plus a note here Quince - $320.60 Fig - $5,394.43 - Don't double dip

Sheet Wrap Up
A1: Topics in this Episode
B3: Steve has to sum numbers that have been entered in a text column
B4: There are multiple lines in each cell, separated by Alt Enter
B5: Need to split those lines to rows, then parse the dollar amount from the middle of each cell
B6: Summarize by Cost Center
B7: Build a lookup table
B8: Get totals from the lookup table, using IFNA to ignore the errors in the blank row
B9: Bonus: Add an Event macro to update the worksheet when they change a cell.
